[Event "*** Titled Tuesday Blitz"]
[Site "Chess.com"]
[Date "2020.12.29"]
[Round "6"]
[White "NiranjanNavalgund"]
[Black "TristanCalistri"]
[Result "1-0"]
[WhiteElo "2486"]
[BlackElo "2297"]
[TimeControl "180+1"]
[EndTime "11:06:50 PST"]
[Termination "NiranjanNavalgund won on time"]

1. e4 {[%clk 0:03:00.9]} 1... d6 {[%clk 0:02:59.7]} 2. Nc3 {[%clk 0:02:57.5]}
2... Nf6 {[%clk 0:03:00.2]} 3. g3 {[%clk 0:02:53.6]} 3... c5 {[%clk 0:02:55.2]}
4. Bg2 {[%clk 0:02:53]} 4... Nc6 {[%clk 0:02:55.8]} 5. d3 {[%clk 0:02:50.3]}
5... Rb8 {[%clk 0:02:55.5]} 6. a4 {[%clk 0:02:49]} 6... a6 {[%clk 0:02:55]} 7.
Nge2 {[%clk 0:02:45.6]} 7... b5 {[%clk 0:02:54.8]} 8. axb5 {[%clk 0:02:45.2]}
8... axb5 {[%clk 0:02:54.9]} 9. h3 {[%clk 0:02:39.5]} 9... e6 {[%clk 0:02:51.3]}
10. O-O {[%clk 0:02:38.7]} 10... b4 {[%clk 0:02:45.2]} 11. Nb1 {[%clk
0:02:35.2]} 11... Be7 {[%clk 0:02:44]} 12. Nd2 {[%clk 0:02:34.9]} 12... O-O
{[%clk 0:02:43.9]} 13. Nc4 {[%clk 0:02:35]} 13... d5 {[%clk 0:02:43.6]} 14. Ne3
{[%clk 0:02:31.3]} 14... Bb7 {[%clk 0:02:02.9]} 15. exd5 {[%clk 0:02:17.2]}
15... exd5 {[%clk 0:02:02.5]} 16. Nf5 {[%clk 0:02:17]} 16... Re8 {[%clk
0:01:57.1]} 17. Bf4 {[%clk 0:02:14.9]} 17... Ra8 {[%clk 0:01:51.6]} 18. Nxe7+
{[%clk 0:02:12.1]} 18... Qxe7 {[%clk 0:01:45]} 19. Rxa8 {[%clk 0:02:07.9]} 19...
Bxa8 {[%clk 0:01:45.9]} 20. Nc1 {[%clk 0:02:07.3]} 20... Ne5 {[%clk 0:01:14.4]}
21. d4 {[%clk 0:01:58.5]} 21... Ng6 {[%clk 0:01:04.9]} 22. Bg5 {[%clk 0:01:47]}
22... c4 {[%clk 0:01:03.3]} 23. b3 {[%clk 0:01:28.8]} 23... Bb7 {[%clk
0:00:56.8]} 24. Qf3 {[%clk 0:01:24.4]} 24... Qe4 {[%clk 0:00:40.3]} 25. Bxf6
{[%clk 0:01:18.6]} 25... Qxf3 {[%clk 0:00:39.8]} 26. Bxf3 {[%clk 0:01:19.5]}
26... gxf6 {[%clk 0:00:40.2]} 27. bxc4 {[%clk 0:01:19.5]} 27... Ra8 {[%clk
0:00:35.9]} 28. cxd5 {[%clk 0:01:17.8]} 28... Rd8 {[%clk 0:00:30.8]} 29. Nd3
{[%clk 0:01:15]} 29... Bxd5 {[%clk 0:00:30.2]} 30. Bxd5 {[%clk 0:01:14.5]} 30...
Rxd5 {[%clk 0:00:30.8]} 31. Nxb4 {[%clk 0:01:15.2]} 31... Rxd4 {[%clk 0:00:31]}
32. c3 {[%clk 0:01:10.7]} 32... Rc4 {[%clk 0:00:30.9]} 33. Rc1 {[%clk
0:01:09.3]} 33... Ne5 {[%clk 0:00:30.7]} 34. Kg2 {[%clk 0:01:08.3]} 34... h5
{[%clk 0:00:22.6]} 35. f4 {[%clk 0:01:05.9]} 35... Ng6 {[%clk 0:00:21.3]} 36.
Nd5 {[%clk 0:01:03.6]} 36... Kg7 {[%clk 0:00:19.1]} 37. Ne3 {[%clk 0:01:03.2]}
37... Re4 {[%clk 0:00:18.3]} 38. Kf3 {[%clk 0:01:00.8]} 38... Re8 {[%clk
0:00:17.1]} 39. c4 {[%clk 0:00:59.8]} 39... Rc8 {[%clk 0:00:15.4]} 40. c5 {[%clk
0:00:59.9]} 40... Ne7 {[%clk 0:00:16]} 41. g4 {[%clk 0:00:58.9]} 41... hxg4+
{[%clk 0:00:15.9]} 42. hxg4 {[%clk 0:00:59.8]} 42... f5 {[%clk 0:00:16.2]} 43.
g5 {[%clk 0:00:58.5]} 43... Kf8 {[%clk 0:00:15.6]} 44. Rc4 {[%clk 0:00:49.8]}
44... Ke8 {[%clk 0:00:15.4]} 45. Nc2 {[%clk 0:00:50.1]} 45... Kd7 {[%clk
0:00:15.3]} 46. Nd4 {[%clk 0:00:49.8]} 46... Ra8 {[%clk 0:00:13.1]} 47. c6+
{[%clk 0:00:48.3]} 47... Kc7 {[%clk 0:00:11.2]} 48. Rc3 {[%clk 0:00:38.5]} 48...
Ra6 {[%clk 0:00:10.4]} 49. Kg3 {[%clk 0:00:31.5]} 49... Ra4 {[%clk 0:00:09.2]}
50. Nf3 {[%clk 0:00:29.4]} 50... Rxf4 {[%clk 0:00:07.5]} 51. Kxf4 {[%clk
0:00:25.7]} 51... Nd5+ {[%clk 0:00:07.8]} 52. Kxf5 {[%clk 0:00:26.1]} 52... Nxc3
{[%clk 0:00:08.4]} 53. Ne5 {[%clk 0:00:25.7]} 53... Nd5 {[%clk 0:00:04.3]} 54.
Ke4 {[%clk 0:00:21.4]} 1-0

[Event "*** Titled Tuesday Blitz"]
[Site "Chess.com"]
[Date "2020.12.29"]
[Round "6"]
[White "ErikRonka"]
[Black "Siniauski"]
[Result "0-1"]
[WhiteElo "2372"]
[BlackElo "2585"]
[TimeControl "180+1"]
[EndTime "11:06:50 PST"]
[Termination "Siniauski won by checkmate"]

1. e4 {[%clk 0:03:00.8]} 1... e6 {[%clk 0:03:00]} 2. d4 {[%clk 0:03:00.3]} 2...
d5 {[%clk 0:03:00.1]} 3. Nc3 {[%clk 0:03:00.8]} 3... Nf6 {[%clk 0:03:00.1]} 4.
e5 {[%clk 0:03:01.2]} 4... Nfd7 {[%clk 0:03:00.7]} 5. f4 {[%clk 0:03:01.8]} 5...
c5 {[%clk 0:03:01.2]} 6. Nf3 {[%clk 0:03:02.4]} 6... Nc6 {[%clk 0:03:01.9]} 7.
Be3 {[%clk 0:03:02.8]} 7... a6 {[%clk 0:03:02.4]} 8. Qd2 {[%clk 0:03:02.9]} 8...
b5 {[%clk 0:03:02.9]} 9. dxc5 {[%clk 0:03:03.3]} 9... Bxc5 {[%clk 0:03:03.8]}
10. Bd3 {[%clk 0:03:02.6]} 10... Qb6 {[%clk 0:03:03.7]} 11. Bf2 {[%clk
0:03:02.3]} 11... Bxf2+ {[%clk 0:02:58.2]} 12. Qxf2 {[%clk 0:03:03.2]} 12... b4
{[%clk 0:02:58.8]} 13. Qxb6 {[%clk 0:02:52.6]} 13... Nxb6 {[%clk 0:02:59.7]} 14.
Ne2 {[%clk 0:02:53]} 14... a5 {[%clk 0:02:57.1]} 15. Ned4 {[%clk 0:02:42.9]}
15... Nxd4 {[%clk 0:02:52.3]} 16. Nxd4 {[%clk 0:02:43.8]} 16... Ba6 {[%clk
0:02:52.4]} 17. b3 {[%clk 0:02:25.9]} 17... Kd7 {[%clk 0:02:45.1]} 18. Kd2
{[%clk 0:02:22.6]} 18... Rhc8 {[%clk 0:02:43.8]} 19. a3 {[%clk 0:02:21.9]} 19...
Bxd3 {[%clk 0:02:31.7]} 20. cxd3 {[%clk 0:02:22.8]} 20... bxa3 {[%clk
0:01:22.7]} 21. Rxa3 {[%clk 0:02:21.6]} 21... a4 {[%clk 0:01:23]} 22. Ke3 {[%clk
0:01:51]} 22... f6 {[%clk 0:00:58.8]} 23. bxa4 {[%clk 0:01:40]} 23... Rxa4
{[%clk 0:00:58.1]} 24. Rxa4 {[%clk 0:01:35.9]} 24... Nxa4 {[%clk 0:00:59]} 25.
Ra1 {[%clk 0:01:35.6]} 25... Nc5 {[%clk 0:00:55.8]} 26. Nb5 {[%clk 0:01:10.8]}
26... fxe5 {[%clk 0:00:40.5]} 27. fxe5 {[%clk 0:00:59.8]} 27... Rb8 {[%clk
0:00:38.3]} 28. Nd6 {[%clk 0:00:24.7]} 28... d4+ {[%clk 0:00:25.4]} 29. Kf3
{[%clk 0:00:18.1]} 29... Rb3 {[%clk 0:00:16.6]} 30. Ra7+ {[%clk 0:00:17.7]}
30... Kc6 {[%clk 0:00:17]} 31. Rxg7 {[%clk 0:00:15.1]} 31... Rxd3+ {[%clk
0:00:17.1]} 32. Ke2 {[%clk 0:00:14.2]} 32... Re3+ {[%clk 0:00:17.5]} 33. Kd2
{[%clk 0:00:13.7]} 33... Nb3+ {[%clk 0:00:08.4]} 34. Kd1 {[%clk 0:00:13.7]}
34... Rxe5 {[%clk 0:00:07.8]} 35. Nc4 {[%clk 0:00:11.1]} 35... Rc5 {[%clk
0:00:08]} 36. Nd2 {[%clk 0:00:09.1]} 36... Rc1+ {[%clk 0:00:04.4]} 37. Ke2
{[%clk 0:00:08.7]} 37... Nc5 {[%clk 0:00:05.1]} 38. Rxh7 {[%clk 0:00:06.8]}
38... d3+ {[%clk 0:00:04]} 39. Ke3 {[%clk 0:00:06.2]} 39... Kd5 {[%clk
0:00:03.6]} 40. Rh5+ {[%clk 0:00:04.9]} 40... e5 {[%clk 0:00:03.8]} 41. Nf3
{[%clk 0:00:05.2]} 41... Nd7 {[%clk 0:00:02.1]} 42. Kxd3 {[%clk 0:00:05.2]}
42... Ra1 {[%clk 0:00:02.2]} 43. Ke3 {[%clk 0:00:05.3]} 43... Ra3+ {[%clk
0:00:02.5]} 44. Kf2 {[%clk 0:00:05.7]} 44... Ra2+ {[%clk 0:00:02.9]} 45. Kg3
{[%clk 0:00:05.7]} 45... Ke6 {[%clk 0:00:03.5]} 46. Rh6+ {[%clk 0:00:05.3]}
46... Nf6 {[%clk 0:00:04]} 47. h4 {[%clk 0:00:03.7]} 47... e4 {[%clk 0:00:04]}
48. Ng5+ {[%clk 0:00:04.1]} 48... Kf5 {[%clk 0:00:04.5]} 49. Nf7 {[%clk
0:00:03.9]} 49... Ra3+ {[%clk 0:00:04]} 50. Kh2 {[%clk 0:00:04.3]} 50... Ng4+
{[%clk 0:00:04.4]} 51. Kg1 {[%clk 0:00:03.5]} 51... Ra1# {[%clk 0:00:04.4]} 0-1

[Event "*** Titled Tuesday Blitz"]
[Site "Chess.com"]
[Date "2020.12.29"]
[Round "6"]
[White "ElGasanov"]
[Black "NMShanMeruga"]
[Result "1-0"]
[WhiteElo "2762"]
[BlackElo "2436"]
[TimeControl "180+1"]
[EndTime "11:06:51 PST"]
[Termination "ElGasanov won by resignation"]

1. d4 {[%clk 0:02:46.9]} 1... Nf6 {[%clk 0:03:00.9]} 2. Nf3 {[%clk 0:02:44.6]}
2... e6 {[%clk 0:03:00.5]} 3. c4 {[%clk 0:02:42.4]} 3... Bb4+ {[%clk 0:02:58.8]}
4. Nc3 {[%clk 0:02:42]} 4... d5 {[%clk 0:02:56.4]} 5. Qa4+ {[%clk 0:02:37.4]}
5... Nc6 {[%clk 0:02:55.6]} 6. e3 {[%clk 0:02:38.1]} 6... O-O {[%clk 0:02:51.8]}
7. Bd2 {[%clk 0:02:38]} 7... a5 {[%clk 0:02:49]} 8. Rd1 {[%clk 0:02:21.7]} 8...
Ne7 {[%clk 0:02:42.5]} 9. Qc2 {[%clk 0:02:13.2]} 9... b6 {[%clk 0:02:39.6]} 10.
cxd5 {[%clk 0:02:09.6]} 10... exd5 {[%clk 0:02:38.2]} 11. a3 {[%clk 0:02:02.4]}
11... Bd6 {[%clk 0:02:35.9]} 12. Nb5 {[%clk 0:02:01.3]} 12... Bf5 {[%clk
0:02:33.5]} 13. Bd3 {[%clk 0:01:57.5]} 13... Bxd3 {[%clk 0:02:32.8]} 14. Qxd3
{[%clk 0:01:58.4]} 14... c5 {[%clk 0:02:25.3]} 15. dxc5 {[%clk 0:01:49.1]} 15...
bxc5 {[%clk 0:02:23]} 16. Bc3 {[%clk 0:01:49]} 16... Ne4 {[%clk 0:02:20.4]} 17.
Nxd6 {[%clk 0:01:49.2]} 17... Qxd6 {[%clk 0:02:19]} 18. Qxe4 {[%clk 0:01:49.2]}
18... Qc7 {[%clk 0:02:02.6]} 19. Qg4 {[%clk 0:01:41.8]} 19... f6 {[%clk
0:02:00.5]} 20. O-O {[%clk 0:01:39.1]} 20... Qc6 {[%clk 0:01:54.9]} 21. Rd2
{[%clk 0:01:36.3]} 21... a4 {[%clk 0:01:52.4]} 22. Rfd1 {[%clk 0:01:31.2]} 22...
Ra6 {[%clk 0:01:49.3]} 23. h4 {[%clk 0:01:28.5]} 23... Qe6 {[%clk 0:01:43.9]}
24. Qxe6+ {[%clk 0:01:27]} 24... Rxe6 {[%clk 0:01:44.3]} 25. Ne1 {[%clk
0:01:23.6]} 25... Rd8 {[%clk 0:01:41.5]} 26. Nd3 {[%clk 0:01:24.1]} 26... Rc6
{[%clk 0:01:38.4]} 27. Nf4 {[%clk 0:01:24.7]} 27... Rcd6 {[%clk 0:01:34.9]} 28.
h5 {[%clk 0:01:20.1]} 28... Kf7 {[%clk 0:01:32.9]} 29. f3 {[%clk 0:01:10.8]}
29... g6 {[%clk 0:01:29.3]} 30. hxg6+ {[%clk 0:01:10.2]} 30... hxg6 {[%clk
0:01:30.2]} 31. Kf2 {[%clk 0:01:10.5]} 31... g5 {[%clk 0:01:27.7]} 32. Ne2
{[%clk 0:01:10.2]} 32... Rh8 {[%clk 0:01:24.9]} 33. Ng3 {[%clk 0:01:07]} 33...
Kg6 {[%clk 0:01:19.4]} 34. Ne4 {[%clk 0:01:01.9]} 34... Rc6 {[%clk 0:01:16.6]}
35. Ng3 {[%clk 0:00:54.5]} 35... Re6 {[%clk 0:01:13.3]} 36. Rc2 {[%clk
0:00:50.1]} 36... Rc6 {[%clk 0:01:10.3]} 37. Be1 {[%clk 0:00:44]} 37... Rb8
{[%clk 0:01:03.9]} 38. Rdc1 {[%clk 0:00:42.6]} 38... Rcb6 {[%clk 0:01:01.3]} 39.
Rxc5 {[%clk 0:00:37.1]} 39... Rxb2+ {[%clk 0:01:00.3]} 40. R1c2 {[%clk
0:00:37.8]} 40... Rxc2+ {[%clk 0:00:57]} 41. Rxc2 {[%clk 0:00:37.6]} 41... Rb6
{[%clk 0:00:55]} 42. Bb4 {[%clk 0:00:37.5]} 42... Nc6 {[%clk 0:00:52.5]} 43. Bc5
{[%clk 0:00:35.3]} 43... Rb3 {[%clk 0:00:50.3]} 44. Rd2 {[%clk 0:00:27.9]} 44...
Ne5 {[%clk 0:00:48.5]} 45. Rxd5 {[%clk 0:00:27]} 45... Nd3+ {[%clk 0:00:44.4]}
46. Kg1 {[%clk 0:00:27.2]} 46... Nxc5 {[%clk 0:00:40.8]} 47. Rxc5 {[%clk
0:00:26.7]} 47... Rxa3 {[%clk 0:00:41.7]} 48. Nf5 {[%clk 0:00:24]} 48... Rb3
{[%clk 0:00:37.6]} 49. e4 {[%clk 0:00:22.1]} 49... Kf7 {[%clk 0:00:35.2]} 50.
Rc7+ {[%clk 0:00:20.6]} 50... Ke8 {[%clk 0:00:34.1]} 51. Ra7 {[%clk 0:00:19.6]}
51... a3 {[%clk 0:00:32.5]} 52. Nd6+ {[%clk 0:00:17.9]} 52... Kd8 {[%clk
0:00:28.2]} 53. Nc4 {[%clk 0:00:18.4]} 53... g4 {[%clk 0:00:25.4]} 54. Rxa3
{[%clk 0:00:17.2]} 54... Rb4 {[%clk 0:00:20.8]} 55. Ne3 {[%clk 0:00:15.8]} 55...
gxf3 {[%clk 0:00:18.6]} 56. gxf3 {[%clk 0:00:15.8]} 1-0

[Event "*** Titled Tuesday Blitz"]
[Site "Chess.com"]
[Date "2020.12.29"]
[Round "6"]
[White "Marianov_Podstavnikov"]
[Black "ZatonskihAnna"]
[Result "0-1"]
[WhiteElo "2272"]
[BlackElo "2489"]
[TimeControl "180+1"]
[EndTime "11:06:52 PST"]
[Termination "ZatonskihAnna won by resignation"]

1. e4 {[%clk 0:03:00.9]} 1... d5 {[%clk 0:02:58.1]} 2. exd5 {[%clk 0:02:59.5]}
2... Qxd5 {[%clk 0:02:59]} 3. Nf3 {[%clk 0:02:57.9]} 3... Nf6 {[%clk 0:02:58.7]}
4. d4 {[%clk 0:02:57.4]} 4... c6 {[%clk 0:02:58.2]} 5. c4 {[%clk 0:02:56.9]}
5... Qd8 {[%clk 0:02:58]} 6. Nc3 {[%clk 0:02:56.5]} 6... Bg4 {[%clk 0:02:57.7]}
7. Be2 {[%clk 0:02:54.6]} 7... e6 {[%clk 0:02:57.9]} 8. O-O {[%clk 0:02:54.1]}
8... Be7 {[%clk 0:02:57.8]} 9. h3 {[%clk 0:02:54]} 9... Bh5 {[%clk 0:02:57.6]}
10. Be3 {[%clk 0:02:53.9]} 10... O-O {[%clk 0:02:57.1]} 11. a3 {[%clk
0:02:47.5]} 11... Nbd7 {[%clk 0:02:54.6]} 12. Rc1 {[%clk 0:02:47]} 12... Re8
{[%clk 0:02:53.8]} 13. b4 {[%clk 0:02:45.9]} 13... a5 {[%clk 0:02:48.3]} 14. b5
{[%clk 0:02:38.3]} 14... Bxa3 {[%clk 0:02:43.6]} 15. Rc2 {[%clk 0:02:37.2]}
15... Bb4 {[%clk 0:02:21.9]} 16. bxc6 {[%clk 0:02:29]} 16... bxc6 {[%clk
0:02:22.8]} 17. Na4 {[%clk 0:02:29.3]} 17... Qc7 {[%clk 0:02:08.4]} 18. Qc1
{[%clk 0:02:28.1]} 18... c5 {[%clk 0:02:01.8]} 19. Bf4 {[%clk 0:02:23.2]} 19...
Qc6 {[%clk 0:02:00.8]} 20. Nxc5 {[%clk 0:02:21.7]} 20... Nxc5 {[%clk 0:01:56.1]}
21. dxc5 {[%clk 0:02:14.5]} 21... Bxc5 {[%clk 0:01:35.9]} 22. Ne5 {[%clk
0:02:14]} 22... Qa6 {[%clk 0:01:09]} 23. Nd3 {[%clk 0:01:14.8]} 23... Bxe2
{[%clk 0:00:52.1]} 24. Rxe2 {[%clk 0:01:15.7]} 24... Be7 {[%clk 0:00:46.4]} 25.
c5 {[%clk 0:01:14.6]} 25... Qxd3 {[%clk 0:00:45.5]} 26. Rd2 {[%clk 0:01:11.7]}
26... Qe4 {[%clk 0:00:42.6]} 27. Bg3 {[%clk 0:01:09.6]} 27... Rec8 {[%clk
0:00:40]} 28. Rc2 {[%clk 0:01:06.3]} 28... Qc6 {[%clk 0:00:39.1]} 29. Rd1 {[%clk
0:01:04.5]} 29... a4 {[%clk 0:00:37.1]} 30. Bd6 {[%clk 0:01:03.7]} 30... Bxd6
{[%clk 0:00:30.2]} 31. Rxd6 {[%clk 0:01:03.5]} 31... Qc7 {[%clk 0:00:30.2]} 32.
Rd3 {[%clk 0:01:00.8]} 32... Nd5 {[%clk 0:00:29.3]} 33. c6 {[%clk 0:00:59.2]}
33... Nb4 {[%clk 0:00:28.5]} 34. Rd7 {[%clk 0:00:57.6]} 34... Qe5 {[%clk
0:00:16.3]} 35. Rc5 {[%clk 0:00:56.4]} 35... Qf6 {[%clk 0:00:14.6]} 36. c7
{[%clk 0:00:56]} 36... a3 {[%clk 0:00:14]} 37. Qd1 {[%clk 0:00:35.7]} 37... a2
{[%clk 0:00:13.2]} 38. Ra5 {[%clk 0:00:35.6]} 38... a1=Q {[%clk 0:00:09.7]} 39.
Rxa1 {[%clk 0:00:34.5]} 39... Rxa1 {[%clk 0:00:08.2]} 40. Rd8+ {[%clk 0:00:34]}
40... Rxd8 {[%clk 0:00:07.4]} 41. cxd8=Q+ {[%clk 0:00:33.6]} 41... Qxd8 {[%clk
0:00:08.3]} 42. Qxa1 {[%clk 0:00:33.5]} 42... Qf8 {[%clk 0:00:09.2]} 43. Qc3
{[%clk 0:00:32.9]} 43... Nd5 {[%clk 0:00:10.1]} 44. Qd4 {[%clk 0:00:32.6]} 44...
h6 {[%clk 0:00:11]} 45. h4 {[%clk 0:00:32.8]} 45... g6 {[%clk 0:00:11.9]} 46. g3
{[%clk 0:00:32.9]} 46... h5 {[%clk 0:00:12.8]} 47. Qb2 {[%clk 0:00:31.5]} 47...
Qg7 {[%clk 0:00:13.7]} 48. Qb8+ {[%clk 0:00:31.1]} 48... Kh7 {[%clk 0:00:14.1]}
49. Qb1 {[%clk 0:00:31.6]} 49... Qf6 {[%clk 0:00:14.9]} 50. Qd3 {[%clk
0:00:31.3]} 50... Kg7 {[%clk 0:00:15.8]} 51. Qb3 {[%clk 0:00:31.1]} 51... Ne7
{[%clk 0:00:16.7]} 52. Qc2 {[%clk 0:00:30.9]} 52... Nf5 {[%clk 0:00:17.6]} 53.
Qd3 {[%clk 0:00:30.9]} 53... Nd4 {[%clk 0:00:17.8]} 54. Qa3 {[%clk 0:00:30.8]}
54... Nf3+ {[%clk 0:00:17.1]} 55. Kg2 {[%clk 0:00:30.5]} 55... Ne5 {[%clk
0:00:16.3]} 56. Qc1 {[%clk 0:00:29.5]} 56... Qf3+ {[%clk 0:00:15.7]} 57. Kg1
{[%clk 0:00:29.5]} 57... Ng4 {[%clk 0:00:16.3]} 58. Qb2+ {[%clk 0:00:29.7]}
58... e5 {[%clk 0:00:15.9]} 59. Qd2 {[%clk 0:00:29.2]} 59... Qxf2+ {[%clk
0:00:15.5]} 60. Qxf2 {[%clk 0:00:29]} 60... Nxf2 {[%clk 0:00:16.4]} 61. Kxf2
{[%clk 0:00:29.9]} 61... Kf6 {[%clk 0:00:17.3]} 62. Ke3 {[%clk 0:00:29.5]} 62...
Kf5 {[%clk 0:00:17.7]} 63. Kf3 {[%clk 0:00:29.9]} 63... f6 {[%clk 0:00:17.3]}
64. Ke3 {[%clk 0:00:30.5]} 64... Kg4 {[%clk 0:00:18]} 65. Kf2 {[%clk 0:00:31.1]}
65... f5 {[%clk 0:00:18.5]} 66. Kg2 {[%clk 0:00:32]} 66... f4 {[%clk 0:00:19]}
67. gxf4 {[%clk 0:00:32.3]} 67... exf4 {[%clk 0:00:19.9]} 68. Kh2 {[%clk
0:00:32.6]} 68... Kxh4 {[%clk 0:00:20.3]} 0-1

[Event "*** Titled Tuesday Blitz"]
[Site "Chess.com"]
[Date "2020.12.29"]
[Round "6"]
[White "zajka-molotok"]
[Black "maheswaran26"]
[Result "1-0"]
[WhiteElo "2482"]
[BlackElo "2234"]
[TimeControl "180+1"]
[EndTime "11:06:52 PST"]
[Termination "zajka-molotok won on time"]

1. e4 {[%clk 0:03:00.9]} 1... c5 {[%clk 0:02:58.8]} 2. Nf3 {[%clk 0:02:59.8]}
2... e6 {[%clk 0:02:58.7]} 3. d4 {[%clk 0:02:58.1]} 3... cxd4 {[%clk 0:02:59]}
4. Nxd4 {[%clk 0:02:59]} 4... a6 {[%clk 0:02:58.9]} 5. Nc3 {[%clk 0:02:58.6]}
5... Qc7 {[%clk 0:02:58.9]} 6. Bd3 {[%clk 0:02:57.4]} 6... Nf6 {[%clk
0:02:58.5]} 7. f4 {[%clk 0:02:56.7]} 7... b5 {[%clk 0:02:57.3]} 8. e5 {[%clk
0:02:52.2]} 8... b4 {[%clk 0:02:55.5]} 9. Na4 {[%clk 0:02:49.3]} 9... Nd5 {[%clk
0:02:51.2]} 10. Be4 {[%clk 0:02:30.7]} 10... Bb7 {[%clk 0:02:49.3]} 11. O-O
{[%clk 0:02:28]} 11... g5 {[%clk 0:01:50.6]} 12. Qf3 {[%clk 0:01:50.9]} 12...
gxf4 {[%clk 0:01:41.3]} 13. Bxf4 {[%clk 0:01:51]} 13... Rg8 {[%clk 0:01:33.5]}
14. Bg3 {[%clk 0:01:45.2]} 14... Rg7 {[%clk 0:01:22.3]} 15. Rac1 {[%clk
0:01:38.3]} 15... Nc6 {[%clk 0:00:52.1]} 16. Nb3 {[%clk 0:00:50.7]} 16... Nxe5
{[%clk 0:00:43.7]} 17. Bxe5 {[%clk 0:00:41.1]} 17... Qxe5 {[%clk 0:00:41.8]} 18.
Nb6 {[%clk 0:00:25.1]} 18... f5 {[%clk 0:00:32.9]} 19. Bxd5 {[%clk 0:00:23.6]}
19... Bxd5 {[%clk 0:00:26.2]} 20. Nxd5 {[%clk 0:00:23.1]} 20... Qxd5 {[%clk
0:00:23.5]} 21. Qxd5 {[%clk 0:00:22.6]} 21... exd5 {[%clk 0:00:23.5]} 22. Rxf5
{[%clk 0:00:23.2]} 22... Rc8 {[%clk 0:00:20]} 23. Rxd5 {[%clk 0:00:22.6]} 23...
Re7 {[%clk 0:00:19.1]} 24. Nd4 {[%clk 0:00:21.2]} 24... Bh6 {[%clk 0:00:17.5]}
25. Rd1 {[%clk 0:00:16]} 25... Be3+ {[%clk 0:00:16.2]} 26. Kf1 {[%clk
0:00:14.1]} 26... Bxd4 {[%clk 0:00:15.1]} 27. R5xd4 {[%clk 0:00:13.5]} 27...
Rxc2 {[%clk 0:00:15.4]} 28. Rxb4 {[%clk 0:00:13.7]} 28... Rf7+ {[%clk
0:00:14.6]} 29. Kg1 {[%clk 0:00:13.6]} 29... Rff2 {[%clk 0:00:14.5]} 30. Re1+
{[%clk 0:00:13]} 30... Kd8 {[%clk 0:00:13.8]} 31. Rg4 {[%clk 0:00:11.6]} 31...
Rxb2 {[%clk 0:00:13.3]} 32. a4 {[%clk 0:00:11.4]} 32... a5 {[%clk 0:00:12.4]}
33. h4 {[%clk 0:00:11.1]} 33... h5 {[%clk 0:00:11.9]} 34. Rg5 {[%clk 0:00:10.7]}
34... Rfd2 {[%clk 0:00:09.9]} 35. Re4 {[%clk 0:00:09.5]} 35... Ra2 {[%clk
0:00:08.6]} 36. Rf4 {[%clk 0:00:08.8]} 36... Rdb2 {[%clk 0:00:07]} 37. Kh2
{[%clk 0:00:08.4]} 37... Rb4 {[%clk 0:00:05.7]} 38. Rxb4 {[%clk 0:00:06.2]}
38... axb4 {[%clk 0:00:05.6]} 39. a5 {[%clk 0:00:05.5]} 39... b3 {[%clk
0:00:04.8]} 40. Rxh5 {[%clk 0:00:05.9]} 40... Kc7 {[%clk 0:00:03.7]} 41. Rb5
{[%clk 0:00:05.8]} 41... b2 {[%clk 0:00:02.7]} 42. a6 {[%clk 0:00:05.7]} 42...
Kc6 {[%clk 0:00:01.8]} 43. Rb3 {[%clk 0:00:04.5]} 43... d5 {[%clk 0:00:00.9]}
44. a7 {[%clk 0:00:04.1]} 1-0

[Event "*** Titled Tuesday Blitz"]
[Site "Chess.com"]
[Date "2020.12.29"]
[Round "6"]
[White "Michaelson_11"]
[Black "kai_nov"]
[Result "0-1"]
[WhiteElo "2197"]
[BlackElo "2376"]
[TimeControl "180+1"]
[EndTime "11:06:53 PST"]
[Termination "kai_nov won by checkmate"]

1. e4 {[%clk 0:03:00.9]} 1... c5 {[%clk 0:02:59.1]} 2. Nf3 {[%clk 0:03:00.5]}
2... Nc6 {[%clk 0:02:58.8]} 3. d4 {[%clk 0:03:01.4]} 3... cxd4 {[%clk
0:02:58.8]} 4. Nxd4 {[%clk 0:03:02.3]} 4... Nf6 {[%clk 0:02:58.7]} 5. Nc3 {[%clk
0:03:02.6]} 5... e5 {[%clk 0:02:57.3]} 6. Ndb5 {[%clk 0:03:02.5]} 6... d6 {[%clk
0:02:56.8]} 7. Bg5 {[%clk 0:03:03.1]} 7... a6 {[%clk 0:02:54.6]} 8. Na3 {[%clk
0:03:03.5]} 8... b5 {[%clk 0:02:53.9]} 9. Nd5 {[%clk 0:03:04.2]} 9... Be7 {[%clk
0:02:53.8]} 10. Bxf6 {[%clk 0:03:04.8]} 10... Bxf6 {[%clk 0:02:53.9]} 11. c3
{[%clk 0:03:05.7]} 11... O-O {[%clk 0:02:53.4]} 12. Nc2 {[%clk 0:03:06.2]} 12...
Bg5 {[%clk 0:02:44.8]} 13. a4 {[%clk 0:03:00.3]} 13... bxa4 {[%clk 0:02:42]} 14.
Rxa4 {[%clk 0:03:01.2]} 14... a5 {[%clk 0:02:41.7]} 15. Nce3 {[%clk 0:02:54.3]}
15... Be6 {[%clk 0:02:34.8]} 16. Bd3 {[%clk 0:02:47.7]} 16... Bxe3 {[%clk
0:02:31]} 17. Nxe3 {[%clk 0:02:48.6]} 17... Rb8 {[%clk 0:02:25.5]} 18. Qd2
{[%clk 0:02:36.6]} 18... Qb6 {[%clk 0:02:19.3]} 19. Nd5 {[%clk 0:02:00.5]} 19...
Qxb2 {[%clk 0:02:15.2]} 20. Qxb2 {[%clk 0:01:51.6]} 20... Rxb2 {[%clk
0:02:15.1]} 21. O-O {[%clk 0:01:52.5]} 21... Rfb8 {[%clk 0:02:01.7]} 22. g3
{[%clk 0:01:30.9]} 22... Rd2 {[%clk 0:01:48.3]} 23. Bc4 {[%clk 0:01:23.4]} 23...
Bh3 {[%clk 0:01:37.3]} 24. Rfa1 {[%clk 0:01:08]} 24... Rbb2 {[%clk 0:01:33.8]}
25. R4a2 {[%clk 0:00:45.6]} 25... Rxf2 {[%clk 0:01:23.7]} 26. Rxb2 {[%clk
0:00:40.1]} 26... Rxb2 {[%clk 0:01:23.1]} 27. Ne3 {[%clk 0:00:33.1]} 27... Kf8
{[%clk 0:01:08.5]} 28. Bd5 {[%clk 0:00:32.8]} 28... Re2 {[%clk 0:00:51.5]} 29.
Nc4 {[%clk 0:00:20.5]} 29... Ne7 {[%clk 0:00:42.6]} 30. Nxa5 {[%clk 0:00:11.6]}
30... Nxd5 {[%clk 0:00:31.8]} 31. exd5 {[%clk 0:00:12.5]} 31... Rg2+ {[%clk
0:00:30.4]} 32. Kh1 {[%clk 0:00:12.7]} 32... Rc2 {[%clk 0:00:29.6]} 33. c4
{[%clk 0:00:12.4]} 33... f5 {[%clk 0:00:21.9]} 34. Rb1 {[%clk 0:00:07.2]} 34...
e4 {[%clk 0:00:18.2]} 35. Rb8+ {[%clk 0:00:04.1]} 35... Kf7 {[%clk 0:00:17]} 36.
Rb1 {[%clk 0:00:04.1]} 36... e3 {[%clk 0:00:15.5]} 37. Nb7 {[%clk 0:00:04.5]}
37... Ke7 {[%clk 0:00:14.7]} 38. Re1 {[%clk 0:00:03.2]} 38... Kd7 {[%clk
0:00:12]} 39. Kg1 {[%clk 0:00:02.7]} 39... Rg2+ {[%clk 0:00:11.3]} 40. Kh1
{[%clk 0:00:03.2]} 40... Rb2 {[%clk 0:00:11.4]} 41. c5 {[%clk 0:00:03.6]} 41...
dxc5 {[%clk 0:00:09.4]} 42. Nxc5+ {[%clk 0:00:03.4]} 42... Kd6 {[%clk
0:00:09.7]} 43. Nd3 {[%clk 0:00:03.2]} 43... Rd2 {[%clk 0:00:09.4]} 44. Nf4
{[%clk 0:00:03.3]} 44... Bg4 {[%clk 0:00:08.2]} 45. Rxe3 {[%clk 0:00:03.6]}
45... g5 {[%clk 0:00:06.9]} 46. Re6+ {[%clk 0:00:02.4]} 46... Kc5 {[%clk
0:00:06.4]} 47. Rc6+ {[%clk 0:00:02.5]} 47... Kd4 {[%clk 0:00:06.2]} 48. Ne6+
{[%clk 0:00:02]} 48... Ke3 {[%clk 0:00:06.5]} 49. h3 {[%clk 0:00:01.9]} 49...
Bf3+ {[%clk 0:00:06.8]} 50. Kg1 {[%clk 0:00:02]} 50... Rd1+ {[%clk 0:00:07.3]}
51. Kh2 {[%clk 0:00:02.1]} 51... Rh1# {[%clk 0:00:08]} 0-1